fUSD/lending_fUSD_20241001
["ID","MTS","AMOUNT","RATE_DAILY","PERIOD"]
[339635839,1727774696690,-700.0,0.00010068,2]
[339635840,1727774696713,-800.0,0.00010068,2]
[339635841,1727774696736,-250.0,0.00010124,2]
[339635842,1727774696758,-698.27,0.00010133,2]
[339635843,1727774696781,-475.44,0.00010217,2]
[339635844,1727774702498,150.0,9.888e-05,2]
[339635845,1727774705813,150.0,9.888e-05,2]
[339635846,1727774722722,686.79,0.00010068,2]
[339635847,1727774726967,150.0,9.888e-05,2]
[339635848,1727774727216,500.0,8.972e-05,2]
[339635849,1727774755601,293.6779364,6.94e-05,2]
[339635850,1727774755624,150.0,6.94e-05,2]
[339635851,1727774755647,6588.91641756,6.94e-05,2]
[339635852,1727774755670,12198.08200099,6.94e-05,2]
[339635853,1727774812741,-491.45,0.00010065,2]
[339635854,1727774812766,-13.21,0.00010068,2]
[339635855,1727774812791,-482.14,0.00010068,2]
[339635856,1727774886883,-217.86,0.00010068,2]
[339635857,1727774886907,-700.0,0.00010068,2]
[339635864,1727774914847,5329.0,0.00022,120]
[339635869,1727774951367,30.34,0.00010068,2]
[339635870,1727774972642,-475.44,0.00010068,2]
[339635884,1727775032108,-194.22,0.00010068,2]
[339635885,1727775032118,-55.78,0.00010068,2]
[339635889,1727775038112,-644.22,0.00010068,2]
[339635890,1727775038121,-500.0,0.000101,2]
[339635891,1727775038131,-250.0,0.000101,2]
[339635892,1727775038140,-405.93,0.00010137,2]
[339635893,1727775038150,-295.31,0.00010144,2]
[339635894,1727775038160,-5993.91916491,0.0001023,2]
[339635895,1727775038170,-300.0,0.0001023,2]
[339635896,1727775038180,-23900.0,0.00010232,2]
[339635897,1727775038191,-420.82,0.00010278,2]
[339635898,1727775038201,-1000.0,0.00010367,2]
[339635899,1727775038212,-150.0,0.00010437,2]
[339635900,1727775038222,-584.58,0.00010527,2]
[339635901,1727775038233,-247.57,0.00010527,2]
[339635902,1727775038244,-481.989,0.0001089,2]
[339635903,1727775038254,-160.154,0.0001089,2]
[339635904,1727775038265,-499.99,0.0001089,2]
[339635905,1727775038275,-262.14,0.00010894,2]
[339635906,1727775038285,-1170.15,0.00010894,2]
[339635907,1727775038297,-2954.3327,0.00010894,2]
[339635908,1727775038307,-150.0,0.00010899,2]
[339635909,1727775038316,-18731.2092,0.000109,2]
[339635910,1727775038326,-475.3993,0.000109,2]
[339635911,1727775038336,-1339.8238,0.000109,2]
[339635912,1727775038346,-365.5228,0.000109,2]
[339635913,1727775038355,-20954.5666659,0.000109,2]
[339635914,1727775038364,-1588.32100732,0.000109,2]
[339635915,1727775038373,-500.0,0.00010911,2]
[339635916,1727775038383,-500.0,0.00010912,2]
[339635917,1727775038392,-500.0,0.00010912,2]
[339635918,1727775038402,-1500.0,0.00010959,2]
[339635919,1727775038412,-250.0,0.00010959,2]
[339635920,1727775038422,-164.11,0.00010959,2]
[339635921,1727775038432,-596.43716126,0.00010973,2]
[339635922,1727775038442,-150.0,0.00010986,2]
[339635923,1727775038452,-156.35,0.0001099,2]
[339635924,1727775038462,-754.36762999,0.00010999,2]
[339635925,1727775038473,-1000.0,0.00010999,2]
[339635926,1727775038483,-1000.0,0.00010999,2]
[339635927,1727775038493,-369.04972131,0.00010999,2]
[339635928,1727775038503,-251.90887593,0.00010999,2]
[339635929,1727775038513,-500.0,0.00010999,2]
[339635930,1727775038523,-500.0,0.00010999,2]
[339635931,1727775038533,-20530.0,0.00011,2]
[339635932,1727775038544,-49866.0,0.00011,2]
[339635933,1727775038554,-324.66678453,0.00011,2]
[339635934,1727775038564,-161385.16929808,0.00011,2]
[339635935,1727775038574,-512413.48244437,0.00011,2]
[339635936,1727775038683,-0.02771203,0.00011,2]
[339635957,1727775042919,-331.97,0.00011,2]
[339635958,1727775043149,-15761.14059765,0.00011,2]
[339635959,1727775045843,-117080.41754958,0.00011,2]
[339635960,1727775045959,-347.6120086,0.00011,2]
[339635961,1727775068444,478.82211197,0.00022,120]
[339635962,1727775099934,150.0,8.972e-05,2]
[339635963,1727775099956,150.0,8.972e-05,2]
[339635964,1727775099977,150.0,8.972e-05,2]
[339635965,1727775099997,50.0,8.972e-05,2]
[339635966,1727775197176,180.66250863,9.968e-05,2]
[339635967,1727775200595,-700.0,0.00010068,2]
[339635968,1727775200616,-700.0,0.00010068,2]
[339635969,1727775200637,-150.0,0.00010899,2]
[339635970,1727775200658,-8450.0,0.000109,2]
[339635971,1727775201712,-10000.0,0.000109,2]
[339635972,1727775202527,-9706.1598,0.000109,2]
[339635973,1727775202549,-293.8402,0.000109,2]
[339635974,1727775203259,-668.3434,0.000109,2]
[339635975,1727775203280,-989.6709,0.000109,2]
[339635976,1727775203301,-8341.9857,0.000109,2]
[339635977,1727775203982,-8368.2881,0.000109,2]
[339635978,1727775204003,-1631.7119,0.000109,2]
[339635979,1727775205957,-221.795,0.000108,2]
[339635980,1727775205978,-9778.205,0.000109,2]
[339635981,1727775213615,-250.0,0.00010692,2]
[339635982,1727775213636,-3500.0,0.000109,2]
[339635983,1727775245244,613.6,8.723e-05,2]
[339635984,1727775246839,800.0,0.0001,3]
[339635985,1727775278381,150.0,9.797e-05,2]
[339635986,1727775278403,150.0,9.797e-05,2]
[339635987,1727775278426,904.58,9.797e-05,2]
[339635988,1727775292119,150.0,9.802e-05,2]
[339635989,1727775292140,150.0,9.802e-05,2]
[339635990,1727775292160,150.0,9.802e-05,2]
[339635991,1727775292181,150.0,9.802e-05,2]
[339635992,1727775292203,98.27,9.802e-05,2]
[339635993,1727775333905,226.41,9.797e-05,2]
[339635994,1727775348009,455.9,9.791e-05,2]
[339635995,1727775367936,150.0,9.791e-05,2]
[339635996,1727775367962,50.0,9.791e-05,2]
[339635997,1727775399854,1000.0,0.00022,120]
[339635998,1727775400098,150.0,9.791e-05,2]
[339635999,1727775400119,150.0,9.791e-05,2]
[339636000,1727775400141,150.0,9.791e-05,2]
[339636001,1727775400161,150.0,9.791e-05,2]
[339636002,1727775400182,150.0,9.791e-05,2]
[339636003,1727775400203,150.0,9.791e-05,2]
[339636004,1727775400224,150.0,9.791e-05,2]
[339636005,1727775400246,297.25,9.791e-05,2]
[339636006,1727775435157,150.0,9.786e-05,2]
[339636007,1727775435179,100.0,9.786e-05,2]
[339636008,1727775441273,171.77,9.786e-05,2]
[339636009,1727775450936,150.0,9.968e-05,2]
[339636010,1727775450959,150.0,9.968e-05,2]
[339636011,1727775450981,150.0,9.968e-05,2]
[339636012,1727775451004,150.0,9.968e-05,2]
[339636013,1727775451032,260.64450868,9.968e-05,2]
[339636014,1727775451055,149.07154424,9.968e-05,2]
[339636015,1727775487765,155.78,9.786e-05,2]
[339636016,1727775488135,155.78,9.789e-05,2]
[339636017,1727775488239,155.78,9.792e-05,2]
[339636018,1727775488459,155.78,9.795e-05,2]
[339636019,1727775488668,155.78,9.798e-05,2]
[339636020,1727775488872,155.78,9.801e-05,2]
[339636021,1727775489080,155.78,9.804e-05,2]
[339636022,1727775489284,155.78,9.806e-05,2]
[339636023,1727775489490,155.78,9.809e-05,2]
[339636024,1727775489722,155.78,9.812e-05,2]
[339636025,1727775489912,155.78,9.815e-05,2]
[339636026,1727775490117,155.78,9.818e-05,2]
[339636027,1727775490314,150.0,9.821e-05,2]
[339636028,1727775490339,5.78,9.821e-05,2]
[339636029,1727775490515,150.0,9.824e-05,2]
[339636030,1727775490539,5.78,9.824e-05,2]
[339636031,1727775490736,150.0,9.827e-05,2]
[339636032,1727775490758,5.78,9.827e-05,2]
[339636033,1727775490938,144.22,9.829e-05,2]
[339636034,1727775490960,11.56,9.829e-05,2]
[339636035,1727775491142,138.44,9.832e-05,2]
[339636036,1727775491164,17.34,9.832e-05,2]
[339636037,1727775491346,132.66,9.835e-05,2]
[339636038,1727775491369,23.12,9.835e-05,2]
[339636039,1727775525877,200.0,9.788e-05,2]
[339636040,1727775551262,150.0,9.968e-05,2]
[339636041,1727775551282,150.0,9.968e-05,2]
[339636042,1727775651640,300.0,9.968e-05,2]
[339636043,1727775742203,1018.11,9.792e-05,2]
[339636044,1727775796984,150.0,9.759e-05,2]
[339636045,1727775797006,100.0,9.759e-05,2]
[339636046,1727775825876,150.0,8.219e-05,2]
[339636047,1727775825898,150.0,8.219e-05,2]
[339636048,1727775825921,150.0,8.219e-05,2]
[339636049,1727775825947,132.92,8.219e-05,2]
[339636050,1727775863891,500.0,8.972e-05,2]
[339636051,1727775877717,150.0,9.749e-05,2]
[339636052,1727775877738,150.0,9.749e-05,2]
[339636053,1727775877758,150.0,9.749e-05,2]
[339636054,1727775877779,150.0,9.749e-05,2]
[339636055,1727775877799,150.0,9.749e-05,2]
[339636056,1727775877822,150.0,9.749e-05,2]
[339636057,1727775877843,150.0,9.749e-05,2]
[339636058,1727775877863,150.0,9.749e-05,2]
[339636059,1727775877883,150.0,9.749e-05,2]
[339636060,1727775877904,150.0,9.749e-05,2]
[339636061,1727775877924,293.78345576,9.749e-05,2]
[339636062,1727775877945,22106.21654424,9.749e-05,2]
[339636063,1727775904262,150.0,9.888e-05,2]
[339636064,1727775906165,150.0,9.888e-05,2]
[339636065,1727775923712,150.0,9.755e-05,2]
[339636066,1727775923735,150.0,9.755e-05,2]
[339636067,1727775923757,48.46,9.755e-05,2]
[339636068,1727775957369,165.63091281,9.968e-05,2]
[339636069,1727775968722,150.0,9.782e-05,2]
[339636070,1727775968743,100.0,9.782e-05,2]
[339636071,1727776028407,150.0,0.0001,3]
[339636072,1727776028429,150.0,0.0001,3]
[339636073,1727776028451,150.0,0.0001,3]
[339636074,1727776028474,150.0,0.0001,3]
[339636075,1727776028495,100.0,0.0001,3]
[339636076,1727776065484,297.2378801,0.00021,60]
[339636077,1727776083030,150.0,9.968e-05,2]
[339636078,1727776084406,355.44875,0.0001,2]
[339636079,1727776179712,193.66,9.759e-05,2]
[339636080,1727776209933,177.724375,0.0001,2]
[339636088,1727776232247,-361.519022,0.00010031,2]
[339636089,1727776232261,-171.300978,0.00010031,2]
[339636090,1727776232272,-288.209022,0.00010068,2]
[339636091,1727776232306,-411.790978,0.00010068,2]
[339636092,1727776232317,-600.0,0.00010068,2]
[339636093,1727776232328,-1500.0,0.000101,3]
[339636094,1727776232339,-177.724375,0.000101,2]
[339636095,1727776232349,-2300.0,0.000102,3]
[339636096,1727776232359,-206.37,0.00010243,2]
[339636097,1727776232370,-300.0,0.00010299,2]
[339636098,1727776232380,-3100.0,0.000103,3]
[339636099,1727776232391,-179.77,0.00010308,2]
[339636100,1727776232402,-3900.0,0.000104,3]
[339636101,1727776232412,-918.0,0.00010408,2]
[339636102,1727776232423,-582.92,0.00010463,2]
[339636103,1727776232433,-700.0,0.000105,3]
[339636104,1727776232443,-700.0,0.000106,3]
[339636105,1727776232454,-1000.0,0.00010641,2]
[339636106,1727776232464,-499.99,0.00010641,2]
[339636107,1727776232706,-700.0,0.000107,3]
[339636108,1727776232724,-150.0,0.00010728,2]
[339636109,1727776232736,-1165.19,0.00010728,2]
[339636110,1727776232746,-150.0,0.00010729,2]
[339636111,1727776232755,-497.79,0.00010729,2]
[339636112,1727776232764,-150.0,0.00010732,2]
[339636113,1727776232773,-150.0,0.00010734,2]
[339636114,1727776232783,-3897.676,0.00010735,2]
[339636115,1727776232792,-171.7976515,0.00010736,2]
[339636116,1727776232801,-150.0,0.00010736,2]
[339636117,1727776232810,-40015.944,0.00010737,2]
[339636118,1727776232819,-150.0,0.00010739,2]
[339636119,1727776232828,-150.0,0.0001074,2]
[339636120,1727776232836,-150.0,0.0001074,2]
[339636121,1727776232845,-300.0,0.00010741,2]
[339636122,1727776232854,-150.0,0.00010742,2]
[339636123,1727776232864,-150.0,0.00010742,2]
[339636124,1727776232872,-150.0,0.00010742,2]
[339636125,1727776232882,-150.0,0.00010744,2]
[339636126,1727776232891,-150.0,0.00010746,2]
[339636127,1727776232900,-150.0,0.00010749,2]
[339636128,1727776232909,-150.0,0.00010753,2]
[339636129,1727776232919,-150.0,0.00010753,2]
[339636130,1727776232928,-150.0,0.00010756,2]
[339636131,1727776232937,-150.0,0.00010771,2]
[339636132,1727776232946,-150.0,0.00010776,2]
[339636133,1727776232955,-150.0,0.00010776,2]
[339636134,1727776232964,-150.0,0.00010781,2]
[339636135,1727776232974,-150.0,0.00010781,2]
[339636136,1727776232983,-150.0,0.00010785,2]
[339636137,1727776232992,-150.0,0.00010786,2]
[339636138,1727776233001,-150.0,0.00010789,2]
[339636139,1727776233011,-150.0,0.00010792,2]
[339636140,1727776233021,-150.0,0.00010794,2]
[339636141,1727776233030,-1240.9058,0.000108,2]
[339636142,1727776233039,-5364.9738,0.000108,2]
[339636143,1727776233049,-2326.4415,0.000108,2]
[339636144,1727776233059,-182.1578,0.000108,2]
[339636145,1727776233069,-1000.0,0.000108,2]
[339636146,1727776233079,-1000.0,0.000108,2]
[339636147,1727776233088,-1015.0,0.000108,2]
[339636148,1727776233097,-1000.0,0.000108,3]
[339636149,1727776233107,-1000.0,0.000108,3]
[339636150,1727776233116,-1000.0,0.000108,3]
[339636151,1727776233126,-1000.0,0.000108,2]
[339636152,1727776233136,-1000.0,0.000108,2]
[339636153,1727776233146,-1000.0,0.000108,2]
[339636154,1727776233155,-1000.0,0.000108,2]
[339636155,1727776233165,-984.0,0.000108,3]
[339636156,1727776233174,-1002.0,0.000108,2]
[339636157,1727776233184,-700.0,0.000108,3]
[339636158,1727776233194,-150.0,0.00010804,2]
[339636159,1727776233203,-150.0,0.00010805,2]
[339636160,1727776233213,-150.0,0.00010807,2]
[339636161,1727776233223,-150.0,0.00010808,2]
[339636162,1727776233232,-150.0,0.00010808,2]
[339636163,1727776233242,-150.0,0.00010814,2]
[339636164,1727776233252,-150.0,0.00010814,2]
[339636165,1727776233262,-150.0,0.00010817,2]
[339636166,1727776233272,-150.0,0.00010818,2]
[339636167,1727776233282,-150.0,0.00010822,2]
[339636168,1727776233291,-150.0,0.00010825,2]
[339636169,1727776233301,-154.81,0.00010825,2]
[339636170,1727776233312,-150.0,0.00010826,2]
[339636171,1727776233321,-150.0,0.00010828,2]
[339636172,1727776233331,-150.0,0.00010833,2]
[339636173,1727776233340,-150.0,0.00010833,2]
[339636174,1727776233349,-150.0,0.00010833,2]
[339636175,1727776233359,-150.0,0.00010834,2]
[339636176,1727776233369,-150.0,0.00010834,2]
[339636177,1727776233379,-242945.83606949,0.00010835,2]
[339636185,1727776238129,-371.69998,0.00010835,2]
[339636186,1727776238141,-1733.45721338,0.00010835,2]
[339636187,1727776238243,-874547.86711798,0.00010835,2]
[339636188,1727776238252,-150.0,0.00010838,2]
[339636189,1727776238261,-150.0,0.0001084,2]
[339636190,1727776238271,-258.95,0.00010841,2]
[339636191,1727776238280,-150.0,0.00010852,2]
[339636192,1727776238289,-150.0,0.00010852,2]
[339636193,1727776238299,-150.0,0.00010854,2]
[339636194,1727776238308,-150.0,0.00010855,2]
[339636195,1727776238318,-150.0,0.00010856,2]
[339636196,1727776238328,-150.0,0.00010857,2]
[339636197,1727776238338,-150.0,0.00010869,2]
[339636198,1727776238347,-150.0,0.0001087,2]
[339636199,1727776238357,-500.0,0.00010873,2]
[339636200,1727776238366,-150.0,0.00010873,2]
[339636201,1727776238375,-150.0,0.00010875,2]
[339636202,1727776238385,-150.0,0.00010875,2]
[339636203,1727776238399,-150.0,0.00010877,2]
[339636204,1727776238407,-150.0,0.00010881,2]
[339636205,1727776238417,-150.0,0.00010884,2]
[339636206,1727776238426,-150.0,0.00010888,2]
[339636207,1727776238435,-150.0,0.0001089,2]
[339636208,1727776238445,-150.0,0.0001089,2]
[339636209,1727776238454,-150.0,0.00010892,2]
[339636210,1727776238463,-150.0,0.00010893,2]
[339636211,1727776238473,-150.0,0.00010894,2]
[339636212,1727776238483,-150.0,0.00010898,2]
[339636213,1727776238493,-150.0,0.00010898,2]
[339636214,1727776238502,-5634.83132621,0.00010899,2]
[339636215,1727776238511,-5634.83132621,0.00010899,2]
[339636216,1727776238521,-5634.83132621,0.00010899,2]
[339636217,1727776238530,-5634.83132621,0.00010899,2]
[339636218,1727776238539,-5634.83132621,0.00010899,2]
[339636219,1727776238548,-5634.83132621,0.00010899,2]
[339636220,1727776238557,-5634.83132621,0.00010899,2]
[339636221,1727776238566,-5634.83132621,0.00010899,2]
[339636222,1727776238576,-5634.83132621,0.00010899,2]
[339636223,1727776238585,-158.56691584,0.000109,2]
[339636224,1727776238594,-71468.7359,0.000109,2]
[339636225,1727776238602,-5634.83132621,0.000109,2]
[339636226,1727776238611,-1300.0,0.000109,3]
[339636227,1727776238620,-189.32387675,0.000109,2]
[339636228,1727776238630,-178.47799185,0.000109,2]
[339636229,1727776238639,-178.47799182,0.000109,2]
[339636230,1727776238648,-178.47799182,0.000109,2]
[339636231,1727776238657,-514.55594846,0.000109,2]
[339636232,1727776238666,-178.47799182,0.000109,2]
[339636234,1727776238675,-150.0,0.00010901,2]
[339636236,1727776238685,-150.0,0.0001091,2]
[339636238,1727776238694,-160.155,0.00010911,2]
[339636240,1727776238703,-385.591,0.00010911,2]
[339636242,1727776238712,-150.0,0.00010911,2]
[339636244,1727776238721,-150.0,0.00010911,2]
[339636246,1727776238730,-500.0,0.00010912,2]
[339636248,1727776238739,-150.0,0.00010912,2]
[339636250,1727776238750,-150.0,0.00010916,2]
[339636252,1727776238759,-150.0,0.00010918,2]
[339636254,1727776238768,-150.0,0.00010925,2]
[339636256,1727776238778,-150.0,0.0001093,2]
[339636258,1727776238787,-150.0,0.00010932,2]
[339636260,1727776238796,-150.0,0.00010932,2]
[339636262,1727776238805,-150.0,0.00010933,2]
[339636264,1727776238815,-150.0,0.00010934,2]
[339636266,1727776238824,-150.0,0.00010948,2]
[339636268,1727776238834,-150.0,0.00010951,2]
[339636269,1727776238842,-150.0,0.00010953,2]
[339636271,1727776238852,-150.0,0.00010954,2]
[339636272,1727776238861,-150.0,0.00010955,2]
[339636273,1727776238870,-500.0,0.00010958,2]
[339636274,1727776238879,-500.0,0.00010958,2]
[339636275,1727776238888,-500.0,0.00010958,2]
[339636276,1727776238897,-500.0,0.00010958,2]
[339636277,1727776238906,-390.61253445,0.00010958,2]
[339636278,1727776238915,-500.0,0.00010958,2]
[339636279,1727776238924,-500.0,0.00010958,2]
[339636280,1727776238933,-267.78390505,0.00010958,2]
[339636281,1727776238942,-163.74,0.00010959,2]
[339636282,1727776238952,-635.45,0.00010959,2]
[339636283,1727776238962,-150.0,0.00010959,2]
[339636284,1727776238972,-150.0,0.00010962,2]
[339636285,1727776238981,-150.0,0.00010962,2]
[339636286,1727776238990,-150.0,0.00010966,2]
[339636287,1727776238999,-500.0,0.00010973,2]
[339636288,1727776239008,-500.0,0.00010973,2]
[339636289,1727776239017,-348.46,0.00010975,2]
[339636290,1727776239027,-150.0,0.00010976,2]
[339636291,1727776239036,-150.0,0.00010977,2]
[339636292,1727776239045,-150.0,0.0001098,2]
[339636293,1727776239054,-150.0,0.00010982,2]
[339636294,1727776239063,-150.0,0.00010985,2]
[339636295,1727776239073,-150.0,0.00010986,2]
[339636296,1727776239082,-79739.0,0.00010986,2]
[339636297,1727776239091,-150.0,0.00010988,2]
[339636298,1727776239100,-150.0,0.0001099,2]
[339636299,1727776239109,-850241.92592104,0.0001099,2]
[339636300,1727776239119,-150.0,0.00010993,2]
[339636301,1727776239130,-150.0,0.00010996,2]
[339636302,1727776239139,-5819.3083657,0.00010998,2]
[339636303,1727776239149,-1000.0,0.00010999,2]
[339636304,1727776239158,-1000.0,0.00010999,2]
[339636305,1727776239167,-1000.0,0.00010999,2]
[339636306,1727776239177,-259.73342762,0.00011,2]
[339636307,1727776239186,-1663164.80917211,0.00011,2]
[339636308,1727776239195,-442461.78464214,0.00011,2]
[339636309,1727776239207,-966598.58861897,0.00011,2]
[339636310,1727776239788,-6597.31615921,0.00011,2]
[339636311,1727776239799,-926.7541379,0.00011,2]
[339636312,1727776239809,-250.0,0.00011,2]
[339636313,1727776239821,-72851.66355887,0.00011,2]
[339636314,1727776239832,-140533.99345,0.00011,2]
[339636318,1727776240066,-6139.93073305,0.00011,2]
[339636319,1727776240077,-1180.22303273,0.00011,2]
[339636320,1727776240126,-6102.1638032,0.00011,2]
[339636321,1727776240138,-4564.99427688,0.00011,2]
[339636322,1727776240150,-419.77238971,0.00011,2]
[339636323,1727776240161,-1656.58520388,0.00011,2]
[339636324,1727776240172,-9681.60895399,0.00011,2]
[339636325,1727776240183,-2042.81024937,0.00011,2]
[339636326,1727776240194,-644.08472678,0.00011,2]
[339636327,1727776240205,-387.98040367,0.00011,2]
[339636328,1727776240217,-699.78547114,0.00011,2]
[339636329,1727776240228,-1819.20996264,0.00011,2]
[339636330,1727776240243,-4424.51532221,0.00011,2]
[339636331,1727776240254,-1520.54503176,0.00011,2]
[339636332,1727776240266,-1003.50055156,0.00011,2]
[339636333,1727776240277,-1594.44684523,0.00011,2]
[339636334,1727776240289,-2369.70077696,0.00011,2]
[339636335,1727776240300,-607.64675005,0.00011,2]
[339636336,1727776240315,-1684.39983408,0.00011,2]
[339636337,1727776240470,-659.91,0.00011,2]
[339636338,1727776240481,-1216.15843688,0.00011,2]
[339636339,1727776240493,-1664.86034281,0.00011,2]
[339636340,1727776240504,-38845.77453441,0.00011,2]
[339636341,1727776240516,-1124.02077438,0.00011,2]
[339636342,1727776240531,-3052.82038365,0.00011,2]
[339636343,1727776240543,-288.74194674,0.00011,2]
[339636344,1727776240554,-747.63162,0.00011,2]
[339636345,1727776240566,-376.955934,0.00011,2]
[339636346,1727776240577,-1424.0,0.00011,2]
[339636347,1727776240589,-276.91061512,0.00011,2]
[339636348,1727776240600,-6350.7067306,0.00011,2]
[339636349,1727776240611,-500.0,0.00011,2]
[339636350,1727776240624,-7971.90000001,0.00011,2]
[339636357,1727776243131,-178.47799182,0.000109,2]
[339636358,1727776243141,-7992.09867727,0.00011,2]
[339636359,1727776243152,-327.12255505,0.00011,2]
[339636360,1727776243192,-477183.1249072,0.00011,2]
[339636361,1727776243204,-701.56000045,0.00011,2]
[339636362,1727776243215,-823.12,0.00011,2]
[339636363,1727776243227,-396.372256,0.00011,2]
[339636364,1727776243239,-696.4439991,0.00011,2]
[339636365,1727776243250,-3664.0000002,0.00011,2]
[339636366,1727776243262,-831.48450349,0.00011,2]
[339636367,1727776243275,-1599.08934919,0.00011,2]
[339636368,1727776243287,-873.04153788,0.00011,2]
[339636369,1727776243298,-985.07438389,0.00011,2]
[339636370,1727776243310,-455.37695136,0.00011,2]
[339636371,1727776243321,-940.096497,0.00011,2]
[339636372,1727776243332,-6246.50973598,0.00011,2]
[339636373,1727776243343,-3035.98002047,0.00011,2]
[339636374,1727776243359,-1252.3653747,0.00011,2]
[339636375,1727776243370,-748.63230573,0.00011,2]
[339636376,1727776243456,-286.93626806,0.00011,2]
[339636377,1727776243468,-1570.55517767,0.00011,2]
[339636378,1727776243480,-1389.0,0.00011,2]
[339636379,1727776243493,-463.29586362,0.00011,2]
[339636380,1727776243529,-3169.21683686,0.00011,2]
[339636387,1727776246060,-3151.08700003,0.00011,2]
[339636388,1727776246119,-573.27155235,0.00011,2]
[339636389,1727776246179,-20944.7951398,0.00011,2]
[339636390,1727776246191,-1058.70623904,0.00011,2]
[339636391,1727776246203,-1159.06416051,0.00011,2]
[339636392,1727776246214,-276.345,0.00011,2]
[339636393,1727776246226,-1367.99179144,0.00011,2]
[339636394,1727776246254,-580.59172386,0.00011,2]
[339636395,1727776246266,-1677.88487854,0.00011,2]
[339636396,1727776246316,-300.0,0.00011,2]
[339636397,1727776246328,-313.06330969,0.00011,2]
[339636417,1727776299435,150.0,8.972e-05,2]
[339636418,1727776299456,150.0,8.972e-05,2]
[339636419,1727776299478,150.0,8.972e-05,2]
[339636420,1727776299501,50.0,8.972e-05,2]
[339636421,1727776444304,150.0,8.603e-05,2]
[339636422,1727776444327,150.0,8.603e-05,2]
[339636423,1727776444350,150.0,8.603e-05,2]
[339636424,1727776444372,167.79,8.603e-05,2]
[339636425,1727776882462,574.77009123,0.00022,120]
[339636426,1727776892310,150.0,0.00022,120]
[339636427,1727776902131,150.0,0.00022,120]
[339636428,1727776902832,150.0,0.00022,120]
[339636429,1727776903171,150.0,0.00022,120]
[339636430,1727776903708,150.0,0.00022,120]
[339636431,1727776904246,150.0,0.00022,120]
[339636432,1727776904808,150.0,0.00022,120]
[339636433,1727776905102,150.0,0.00022,120]
[339636434,1727776905698,150.0,0.00022,120]
[339636435,1727776906282,150.0,0.00022,120]
[339636436,1727776906629,150.0,0.00022,120]
[339636437,1727776906959,150.0,0.00022,120]
[339636438,1727776907289,150.0,0.00022,120]
[339636439,1727776907639,150.0,0.00022,120]
[339636440,1727776908522,150.0,0.00022,120]
[339636441,1727776909184,150.0,0.00022,120]
[339636442,1727776909234,150.0,0.00022,120]
[339636443,1727776909561,150.0,0.00022,120]
[339636444,1727776909928,150.0,0.00022,120]
[339636445,1727776910253,150.0,0.00022,120]
[339636446,1727776916854,150.0,0.00022,120]
[339636447,1727776917152,150.0,0.00022,120]
[339636448,1727777034352,900.0,0.00022,120]
[339636449,1727777046070,900.0,0.00022,120]
[339636450,1727777205596,150.0,8.32e-05,2]
[339636451,1727777205622,436.9,8.32e-05,2]